[Event "Schack-SM 2022: Junior-SM"]
[Site "Fyrishov, Idrottsgatan 2, Uppsala, Sweden"]
[Date "2022.07.02"]
[Round "1.5"]
[White "Soderstrom, Adrian"]
[Black "Falkevall, Axel"]
[Result "1/2-1/2"]
[TimeControl "90 minutes for 40 moves + 30 minutes for the rest of the game + 30 seconds per move from move one."]
[WhiteTitle "CM"]
[BlackTitle "FM"]
[WhiteFideId "1745786"]
[BlackFideId "1735560"]
[WhiteElo "2292"]
[BlackElo "2275"]

1. d4 {[%clk 01:30:55]} {[%emt 00:00:05]} Nf6 {[%clk 01:30:49]} {[%emt
00:00:11]} 2. c4 {[%clk 01:31:20]} {[%emt 00:00:04]} e6 {[%clk 01:31:09]}
{[%emt 00:00:09]} 3. Nf3 {[%clk 01:31:42]} {[%emt 00:00:09]} d5 {[%clk
01:31:20]} {[%emt 00:00:20]} 4. Nc3 {[%clk 01:32:01]} {[%emt 00:00:11]} Bb4
{[%clk 01:31:26]} {[%emt 00:00:24]} 5. Bg5 {[%clk 01:31:59]} {[%emt 00:00:31]}
h6 {[%clk 01:31:36]} {[%emt 00:00:20]} 6. Bxf6 {[%clk 01:32:07]} {[%emt
00:00:23]} Qxf6 {[%clk 01:31:27]} {[%emt 00:00:38]} 7. Qa4+ {[%clk 01:32:18]}
{[%emt 00:00:20]} Nc6 {[%clk 01:31:34]} {[%emt 00:00:22]} 8. e3 {[%clk
01:32:31]} {[%emt 00:00:16]} O-O {[%clk 01:27:29]} {[%emt 00:04:36]} 9. Rc1
{[%clk 01:31:14]} {[%emt 00:01:47]} Rd8 {[%clk 01:19:27]} {[%emt 00:08:32]} 10.
Be2 {[%clk 00:57:26]} {[%emt 00:34:18]} dxc4 {[%clk 00:59:34]} {[%emt
00:20:22]} 11. Bxc4 {[%clk 00:32:22]} {[%emt 00:25:35]} Qg6 {[%clk 00:47:02]}
{[%emt 00:13:03]} 12. O-O {[%clk 00:31:22]} {[%emt 00:01:29]} Bd7 {[%clk
00:40:54]} {[%emt 00:06:38]} 13. Qc2 {[%clk 00:31:09]} {[%emt 00:00:44]} Qxc2
{[%clk 00:39:21]} {[%emt 00:02:02]} 14. Rxc2 {[%clk 00:30:55]} {[%emt
00:00:45]} Bf8 {[%clk 00:25:42]} {[%emt 00:14:08]} 15. a3 {[%clk 00:30:29]}
{[%emt 00:00:56]} Be8 {[%clk 00:21:05]} {[%emt 00:05:07]} 16. Rfc1 {[%clk
00:29:10]} {[%emt 00:01:50]} Rac8 {[%clk 00:17:45]} {[%emt 00:03:49]} 17. Ba2
{[%clk 00:26:04]} {[%emt 00:03:36]} Ne7 {[%clk 00:15:12]} {[%emt 00:03:03]} 18.
Ne4 {[%clk 00:23:56]} {[%emt 00:02:38]} Bc6 {[%clk 00:11:20]} {[%emt 00:04:22]}
19. Nc5 {[%clk 00:19:58]} {[%emt 00:04:27]} Bxf3 {[%clk 00:10:20]} {[%emt
00:01:31]} 20. gxf3 {[%clk 00:20:25]} {[%emt 00:00:02]} Rb8 {[%clk 00:10:18]}
{[%emt 00:00:33]} 21. Nd3 {[%clk 00:16:51]} {[%emt 00:04:05]} c6 {[%clk
00:10:15]} {[%emt 00:00:32]} 22. Kf1 {[%clk 00:13:49]} {[%emt 00:03:32]} Nf5
{[%clk 00:08:41]} {[%emt 00:02:04]} 23. Ke2 {[%clk 00:11:25]} {[%emt 00:02:54]}
Bd6 {[%clk 00:08:05]} {[%emt 00:01:07]} 24. f4 {[%clk 00:11:36]} {[%emt
00:00:18]} Kf8 {[%clk 00:06:22]} {[%emt 00:02:12]} 25. Rc3 {[%clk 00:11:40]}
{[%emt 00:00:27]} Be7 {[%clk 00:05:22]} {[%emt 00:01:30]} 26. Ne5 {[%clk
00:11:27]} {[%emt 00:00:43]} Bf6 {[%clk 00:04:52]} {[%emt 00:01:00]} 27. Rc5
{[%clk 00:11:15]} {[%emt 00:00:42]} Nd6 {[%clk 00:04:12]} {[%emt 00:01:10]} 28.
Bb1 {[%clk 00:08:17]} {[%emt 00:03:29]} Rbc8 {[%clk 00:03:47]} {[%emt
00:00:54]} 29. Bd3 {[%clk 00:08:26]} {[%emt 00:00:21]} g6 {[%clk 00:03:28]}
{[%emt 00:00:49]} 30. b4 {[%clk 00:07:40]} {[%emt 00:01:17]} a6 {[%clk
00:03:35]} {[%emt 00:00:23]} 31. R5c3 {[%clk 00:07:07]} {[%emt 00:01:02]} g5
{[%clk 00:03:08]} {[%emt 00:00:57]} 32. Ng4 {[%clk 00:06:57]} {[%emt 00:00:40]}
Bg7 {[%clk 00:03:22]} {[%emt 00:00:16]} 33. fxg5 {[%clk 00:06:27]} {[%emt
00:01:00]} hxg5 {[%clk 00:03:48]} {[%emt 00:00:04]} 34. Rc5 {[%clk 00:06:22]}
{[%emt 00:00:36]} f6 {[%clk 00:03:10]} {[%emt 00:01:08]} 35. Rh1 {[%clk
00:01:50]} {[%emt 00:05:00]} 1/2-1/2

[Event "Schack-SM 2022: Junior-SM"]
[Site "Fyrishov, Idrottsgatan 2, Uppsala, Sweden"]
[Date "2022.07.02"]
[Round "1.1"]
[White "Torngren, Gustav"]
[Black "Ostlund, Joar"]
[Result "0-1"]
[TimeControl "90 minutes for 40 moves + 30 minutes for the rest of the game + 30 seconds per move from move one."]
[WhiteTitle "FM"]
[BlackTitle "CM"]
[WhiteFideId "1728970"]
[BlackFideId "1735020"]
[WhiteElo "2273"]
[BlackElo "2222"]

1. e4 {[%clk 01:30:32]} {[%emt 00:00:27]} e5 {[%clk 01:30:49]} {[%emt
00:00:12]} 2. Nf3 {[%clk 01:30:43]} {[%emt 00:00:18]} Nc6 {[%clk 01:30:53]}
{[%emt 00:00:26]} 3. Bc4 {[%clk 01:30:42]} {[%emt 00:00:31]} Bc5 {[%clk
01:30:52]} {[%emt 00:00:31]} 4. c3 {[%clk 01:30:54]} {[%emt 00:00:19]} Nf6
{[%clk 01:30:54]} {[%emt 00:00:27]} 5. d4 {[%clk 01:31:06]} {[%emt 00:00:18]}
exd4 {[%clk 01:30:59]} {[%emt 00:00:25]} 6. b4 {[%clk 01:31:22]} {[%emt
00:00:14]} Bb6 {[%clk 01:24:49]} {[%emt 00:06:41]} 7. e5 {[%clk 01:31:32]}
{[%emt 00:00:20]} d5 {[%clk 01:21:20]} {[%emt 00:03:59]} 8. exf6 {[%clk
01:31:38]} {[%emt 00:00:23]} dxc4 {[%clk 01:21:25]} {[%emt 00:00:25]} 9. Qe2+
{[%clk 01:31:48]} {[%emt 00:00:21]} Be6 {[%clk 01:14:10]} {[%emt 00:07:45]} 10.
b5 {[%clk 01:31:46]} {[%emt 00:00:31]} Na5 {[%clk 01:09:24]} {[%emt 00:05:16]}
11. fxg7 {[%clk 01:31:02]} {[%emt 00:01:13]} Rg8 {[%clk 01:09:41]} {[%emt
00:00:14]} 12. cxd4 {[%clk 01:31:13]} {[%emt 00:00:20]} Rxg7 {[%clk 01:06:02]}
{[%emt 00:04:09]} 13. Nc3 {[%clk 01:28:21]} {[%emt 00:03:22]} Bxd4 {[%clk
00:33:56]} {[%emt 00:32:36]} 14. Nxd4 {[%clk 01:27:55]} {[%emt 00:00:55]} Qxd4
{[%clk 00:34:13]} {[%emt 00:00:13]} 15. Bb2 {[%clk 01:28:03]} {[%emt 00:00:22]}
Qg4 {[%clk 00:21:51]} {[%emt 00:12:54]} 16. Ne4 {[%clk 01:10:00]} {[%emt
00:18:32]} Qxe2+ {[%clk 00:21:37]} {[%emt 00:00:43]} 17. Kxe2 {[%clk 01:10:27]}
{[%emt 00:00:02]} Rg6 {[%clk 00:21:47]} {[%emt 00:00:21]} 18. Rad1 {[%clk
01:08:40]} {[%emt 00:02:17]} Bf5 {[%clk 00:21:16]} {[%emt 00:00:59]} 19. Nf6+
{[%clk 01:07:11]} {[%emt 00:02:01]} Ke7 {[%clk 00:21:03]} {[%emt 00:00:44]} 20.
Nd5+ {[%clk 01:06:14]} {[%emt 00:01:26]} Kf8 {[%clk 00:21:16]} {[%emt
00:00:17]} 21. Ba3+ {[%clk 01:04:35]} {[%emt 00:02:10]} Kg7 {[%clk 00:21:28]}
{[%emt 00:00:17]} 22. Bb2+ {[%clk 01:03:41]} {[%emt 00:01:25]} Kf8 {[%clk
00:21:27]} {[%emt 00:00:31]} 23. Rd4 {[%clk 01:02:55]} {[%emt 00:01:16]} c6
{[%clk 00:17:26]} {[%emt 00:04:31]} 24. Nf4 {[%clk 01:01:14]} {[%emt 00:02:10]}
Rg5 {[%clk 00:14:45]} {[%emt 00:03:10]} 25. Bc3 {[%clk 00:53:02]} {[%emt
00:08:43]} Bd3+ {[%clk 00:12:42]} {[%emt 00:02:34]} 26. Kf3 {[%clk 00:53:21]}
{[%emt 00:00:11]} Rxb5 {[%clk 00:11:33]} {[%emt 00:01:38]} 27. a4 {[%clk
00:53:25]} {[%emt 00:00:26]} Rb3 {[%clk 00:10:11]} {[%emt 00:01:53]} 28. Rc1
{[%clk 00:51:27]} {[%emt 00:02:28]} c5 {[%clk 00:08:29]} {[%emt 00:02:12]} 29.
Rd6 {[%clk 00:51:26]} {[%emt 00:00:31]} Nc6 {[%clk 00:08:16]} {[%emt 00:00:42]}
30. Kg4 {[%clk 00:49:53]} {[%emt 00:02:03]} Re8 {[%clk 00:07:30]} {[%emt
00:01:15]} 31. Bf6 {[%clk 00:47:48]} {[%emt 00:02:35]} Ne5+ {[%clk 00:06:49]}
{[%emt 00:01:12]} 32. Kg5 {[%clk 00:47:20]} {[%emt 00:00:57]} Rb6 {[%clk
00:03:57]} {[%emt 00:03:23]} 33. Rd5 {[%clk 00:45:58]} {[%emt 00:01:52]} h6+
{[%clk 00:04:07]} {[%emt 00:00:21]} 34. Kh4 {[%clk 00:45:27]} {[%emt 00:01:00]}
Rxf6 {[%clk 00:04:28]} {[%emt 00:00:09]} 35. Nxd3 {[%clk 00:45:52]} {[%emt
00:00:05]} Nxd3 {[%clk 00:03:23]} {[%emt 00:01:35]} 36. Rxc4 {[%clk 00:46:12]}
{[%emt 00:00:10]} Rf4+ {[%clk 00:03:09]} {[%emt 00:00:43]} 37. Rxf4 {[%clk
00:46:39]} {[%emt 00:00:04]} Nxf4 {[%clk 00:03:29]} {[%emt 00:00:11]} 38. Rxc5
{[%clk 00:47:06]} {[%emt 00:00:03]} Nxg2+ {[%clk 00:03:05]} {[%emt 00:00:53]}
0-1